{"text_format":"3","workbook":"xlsx","n_sheets":1,"sheets":["Месячный семейный бюджет"],"not_rendered":{"charts":2,"defined_names":2},"read":"whole","date_system":"1900"}

{"sheet":"Месячный семейный бюджет","index":0,"n_rows":68,"n_cols":17,"rows_kept":68,"merged":[[0,1,0,7],[2,1,2,2],[2,6,2,7],[7,19,7,20],[8,6,8,7],[10,16,10,17],[13,19,13,20],[16,16,16,17],[18,1,18,4],[29,1,29,4],[36,1,36,4],[42,1,42,4],[54,1,54,4],[61,1,61,4]]}
[]
[]
[null,"Общие планируемые расходы",null,"Общие фактические расходы","Общая Разница",null,"Планируемый месячный доход"]
[null,null,{"$f":"Хранение[[#Totals],[Планируемые расходы]]+Перевозки[[#Totals],[Планируемые расходы]]+Страховка[[#Totals],[Планируемые расходы]]+Питание[[#Totals],[Планируемые расходы]]+Дети[[#Totals],[Планируемые расходы]]+Юридические[[#Totals],[Планируемые расходы]]+Сбережения[[#Totals],[Планируемые расходы]]+Займы[[#Totals],[Планируемые расходы]]+Развлечения[[#Totals],[Планируемые расходы]]+Налоги[[#Totals],[Планируемые расходы]]+ЛичнаяГигиена[[#Totals],[Планируемые расходы]]+Домашние_животные[[#Totals],[Планируемые расходы]]+Подарки[[#Totals],[Планируемые расходы]]","v":{"v":3941,"d":"3,941p."}},{"$f":"Хранение[[#Totals],[Фактические расходы]]+Перевозки[[#Totals],[Фактические расходы]]+Страховка[[#Totals],[Фактические расходы]]+Питание[[#Totals],[Фактические расходы]]+Дети[[#Totals],[Фактические расходы]]+Юридические[[#Totals],[Фактические расходы]]+Сбережения[[#Totals],[Фактические расходы]]+Займы[[#Totals],[Фактические расходы]]+Развлечения[[#Totals],[Фактические расходы]]+Налоги[[#Totals],[Фактические расходы]]+ЛичнаяГигиена[[#Totals],[Фактические расходы]]+Домашние_животные[[#Totals],[Фактические расходы]]+Подарки[[#Totals],[Фактические расходы]]","v":{"v":4034,"d":"4,034p."}},{"$f":"Хранение[[#Totals],[Разница]]+Перевозки[[#Totals],[Разница]]+Страховка[[#Totals],[Разница]]+Питание[[#Totals],[Разница]]+Дети[[#Totals],[Разница]]+Юридические[[#Totals],[Разница]]+Сбережения[[#Totals],[Разница]]+Займы[[#Totals],[Разница]]+Развлечения[[#Totals],[Разница]]+Налоги[[#Totals],[Разница]]+ЛичнаяГигиена[[#Totals],[Разница]]+Домашние_животные[[#Totals],[Разница]]+Подарки[[#Totals],[Разница]]","v":{"v":-93,"d":"(93p.)"}},null,"Доход 1",{"v":1500,"d":"1,500p."}]
[{"$nulls":6},"Доход 2",{"v":1200,"d":"1,200p."}]
[null,"Хранение","Планируемые расходы","Фактические расходы","Разница",null,"Дополнительный доход",{"v":300,"d":"300p."}]
[null,"Вторая ипотека или аренда",{"v":0,"d":"0p."},{"v":0,"d":"0p."},{"$f":"Хранение[Планируемые расходы]-Хранение[Фактические расходы]","v":{"v":0,"d":"0p."}},null,"Общий месячный доход",{"$f":"SUM(H4:H6)","v":{"v":3000,"d":"3,000p."}}]
[null,"Расходные материалы",{"v":0,"d":"0p."},{"v":0,"d":"0p."},{"$f":"Хранение[Планируемые расходы]-Хранение[Фактические расходы]","v":{"v":0,"d":"0p."}}]
[null,"Другое",{"v":0,"d":"0p."},{"v":0,"d":"0p."},{"$f":"Хранение[Планируемые расходы]-Хранение[Фактические расходы]","v":{"v":0,"d":"0p."}},null,"Фактический месячный доход",{"$nulls":3},"  "]
[null,"Вода и канализация",{"v":8,"d":"8p."},{"v":8,"d":"8p."},{"$f":"Хранение[Планируемые расходы]-Хранение[Фактические расходы]","v":{"v":0,"d":"0p."}},null,"Доход 1",{"v":4000,"d":"4,000p."}]
[null,"Уборка мусора",{"v":10,"d":"10p."},{"v":10,"d":"10p."},{"$f":"Хранение[Планируемые расходы]-Хранение[Фактические расходы]","v":{"v":0,"d":"0p."}},null,"Доход 2",{"v":1200,"d":"1,200p."}]
[null,"Обслуживание и ремонт",{"v":23,"d":"23p."},{"v":23,"d":"23p."},{"$f":"Хранение[Планируемые расходы]-Хранение[Фактические расходы]","v":{"v":0,"d":"0p."}},null,"Дополнительный доход",{"v":300,"d":"300p."}]
[null,"Газ",{"v":22,"d":"22p."},{"v":35,"d":"35p."},{"$f":"Хранение[Планируемые расходы]-Хранение[Фактические расходы]","v":{"v":-13,"d":"-13p."}},null,"Общий месячный доход",{"$f":"SUM(H10:H12)","v":{"v":5500,"d":"5,500p."}}]
[null,"Кабельное ТВ",{"v":34,"d":"34p."},{"v":34,"d":"34p."},{"$f":"Хранение[Планируемые расходы]-Хранение[Фактические расходы]","v":{"v":0,"d":"0p."}}]
[null,"Телефон",{"v":120,"d":"120p."},{"v":120,"d":"120p."},{"$f":"Хранение[Планируемые расходы]-Хранение[Фактические расходы]","v":{"v":0,"d":"0p."}},null,"Планируемый баланс\n",{"$f":"SUM(H7-C4)","v":{"v":-941,"d":"(941p.)"}}]
[null,"Электричество",{"v":44,"d":"44p."},{"v":44,"d":"44p."},{"$f":"Хранение[Планируемые расходы]-Хранение[Фактические расходы]","v":{"v":0,"d":"0p."}},null,"Фактический баланс",{"$f":"SUM(H13-D4)","v":{"v":1466,"d":"1,466p."}}]
[null,"Ипотека или аренда",{"v":1100,"d":"1,100p."},{"v":1100,"d":"1,100p."},{"$f":"Хранение[Планируемые расходы]-Хранение[Фактические расходы]","v":{"v":0,"d":"0p."}},null,"Разница",{"$f":"SUM(H16-H15)","v":{"v":2407,"d":"2,407p."}}]
[null,"Итого",{"$f":"SUBTOTAL(109,Хранение[Планируемые расходы])","v":{"v":1361,"d":"1,361p."}},{"$f":"SUBTOTAL(109,Хранение[Фактические расходы])","v":{"v":1374,"d":"1,374p."}},{"$f":"SUBTOTAL(109,Хранение[Разница])","v":{"v":-13,"d":"(13p.)"}}]
[]
[null,"Перевозки","Планируемые расходы","Фактические расходы","Разница",null,"Развлечения","Планируемые расходы","Фактические расходы","Разница"]
[null,"Плата за транспортное средство 1",{"v":350,"d":"350p."},{"v":350,"d":"350p."},{"$f":"Перевозки[Планируемые расходы]-Перевозки[Фактические расходы]","v":{"v":0,"d":"0p."}},null,"Видео/DVD",null,null,{"$f":"Развлечения[Планируемые расходы]-Развлечения[Фактические расходы]","v":{"v":0,"d":"0p."}}]
[null,"Плата за транспортное средство 2",{"v":200,"d":"200p."},{"v":200,"d":"200p."},{"$f":"Перевозки[Планируемые расходы]-Перевозки[Фактические расходы]","v":{"v":0,"d":"0p."}},null,"Компакт-диски",null,null,{"$f":"Развлечения[Планируемые расходы]-Развлечения[Фактические расходы]","v":{"v":0,"d":"0p."}}]
[null,"Траты на автобус и такси",{"v":100,"d":"100p."},{"v":100,"d":"100p."},{"$f":"Перевозки[Планируемые расходы]-Перевозки[Фактические расходы]","v":{"v":0,"d":"0p."}},null,"Кинофильмы",{"v":50,"d":"50p."},{"v":50,"d":"50p."},{"$f":"Развлечения[Планируемые расходы]-Развлечения[Фактические расходы]","v":{"v":0,"d":"0p."}}]
[null,"Топливо",{"v":60,"d":"60p."},{"v":60,"d":"60p."},{"$f":"Перевозки[Планируемые расходы]-Перевозки[Фактические расходы]","v":{"v":0,"d":"0p."}},null,"Концерты",{"v":300,"d":"300p."},{"v":300,"d":"300p."},{"$f":"Развлечения[Планируемые расходы]-Развлечения[Фактические расходы]","v":{"v":0,"d":"0p."}},{"$nulls":5},"хранение",1300]
[null,"Страховка",{"v":50,"d":"50p."},{"v":50,"d":"50p."},{"$f":"Перевозки[Планируемые расходы]-Перевозки[Фактические расходы]","v":{"v":0,"d":"0p."}},null,"Спортивные соревнования",null,null,{"$f":"Развлечения[Планируемые расходы]-Развлечения[Фактические расходы]","v":{"v":0,"d":"0p."}},{"$nulls":5},"перевозки",800]
[null,"Обслуживание",{"v":20,"d":"20p."},{"v":0,"d":"0p."},{"$f":"Перевозки[Планируемые расходы]-Перевозки[Фактические расходы]","v":{"v":20,"d":"20p."}},null,"Театр",{"v":100,"d":"100p."},{"v":100,"d":"100p."},{"$f":"Развлечения[Планируемые расходы]-Развлечения[Фактические расходы]","v":{"v":0,"d":"0p."}},{"$nulls":5},"страховка",500]
[null,"Лицензии",null,null,{"$f":"Перевозки[Планируемые расходы]-Перевозки[Фактические расходы]","v":{"v":0,"d":"0p."}},null,"Другое",null,null,{"$f":"Развлечения[Планируемые расходы]-Развлечения[Фактические расходы]","v":{"v":0,"d":"0p."}},{"$nulls":5},"питание",700]
[null,"Другое",null,null,{"$f":"Перевозки[Планируемые расходы]-Перевозки[Фактические расходы]","v":{"v":0,"d":"0p."}},null,"Итого",{"$f":"SUBTOTAL(109,Развлечения[Планируемые расходы])","v":{"v":450,"d":"450p."}},{"$f":"SUBTOTAL(109,Развлечения[Фактические расходы])","v":{"v":450,"d":"450p."}},{"$f":"SUBTOTAL(109,Развлечения[Разница])","v":{"v":0,"d":"0p."}},{"$nulls":5},"дети",500]
[null,"Итого",{"$f":"SUBTOTAL(109,Перевозки[Планируемые расходы])","v":{"v":780,"d":"780p."}},{"$f":"SUBTOTAL(109,Перевозки[Фактические расходы])","v":{"v":760,"d":"760p."}},{"$f":"SUBTOTAL(109,Перевозки[Разница])","v":{"v":20,"d":"20p."}},{"$nulls":10},"развлечения",500]
[{"$nulls":6},"Подарки и пожертвования","Планируемые расходы","Фактические расходы","Разница",{"$nulls":5},"подарки",400]
[null,"Страховка","Планируемые расходы","Фактические расходы","Разница",null,"Благотворительность 1",null,null,{"$f":"Подарки[Планируемые расходы]-Подарки[Фактические расходы]","v":{"v":0,"d":"0p."}},{"$nulls":5},"домашние животные",800]
[null,"Дом",null,null,{"$f":"Страховка[Планируемые расходы]-Страховка[Фактические расходы]","v":{"v":0,"d":"0p."}},null,"Благотворительность 2",null,null,{"$f":"Подарки[Планируемые расходы]-Подарки[Фактические расходы]","v":{"v":0,"d":"0p."}},{"$nulls":5},"личная гигиена",200]
[null,"Здоровье",{"v":50,"d":"50p."},{"v":50,"d":"50p."},{"$f":"Страховка[Планируемые расходы]-Страховка[Фактические расходы]","v":{"v":0,"d":"0p."}},null,"Благотворительность 3",null,null,{"$f":"Подарки[Планируемые расходы]-Подарки[Фактические расходы]","v":{"v":0,"d":"0p."}},{"$nulls":5},"сбережения",500]
[null,"Жизнь",null,null,{"$f":"Страховка[Планируемые расходы]-Страховка[Фактические расходы]","v":{"v":0,"d":"0p."}},null,"Итого",{"$f":"SUBTOTAL(109,Подарки[Планируемые расходы])","v":{"v":0,"d":"0p."}},{"$f":"SUBTOTAL(109,Подарки[Фактические расходы])","v":{"v":0,"d":"0p."}},{"$f":"SUBTOTAL(109,Подарки[Разница])","v":{"v":0,"d":"0p."}}]
[null,"Другое",null,null,{"$f":"Страховка[Планируемые расходы]-Страховка[Фактические расходы]","v":{"v":0,"d":"0p."}}]
[null,"Итого",{"$f":"SUBTOTAL(109,Страховка[Планируемые расходы])","v":{"v":50,"d":"50p."}},{"$f":"SUBTOTAL(109,Страховка[Фактические расходы])","v":{"v":50,"d":"50p."}},{"$f":"SUBTOTAL(109,Страховка[Разница])","v":{"v":0,"d":"0p."}},null,"Домашние животные","Планируемые расходы","Фактические расходы","Разница"]
[{"$nulls":6},"Питание",null,null,{"$f":"Домашние_животные[Планируемые расходы]-Домашние_животные[Фактические расходы]","v":{"v":0,"d":"0p."}}]
[null,"Питание","Планируемые расходы","Фактические расходы","Разница",null,"Медицина",null,null,{"$f":"Домашние_животные[Планируемые расходы]-Домашние_животные[Фактические расходы]","v":{"v":0,"d":"0p."}}]
[null,"Продукты",{"v":200,"d":"200p."},{"v":300,"d":"300p."},{"$f":"Питание[Планируемые расходы]-Питание[Фактические расходы]","v":{"v":-100,"d":"-100p."}},null,"Чистка",null,null,{"$f":"Домашние_животные[Планируемые расходы]-Домашние_животные[Фактические расходы]","v":{"v":0,"d":"0p."}}]
[null,"Рестораны",{"v":500,"d":"500p."},{"v":200,"d":"200p."},{"$f":"Питание[Планируемые расходы]-Питание[Фактические расходы]","v":{"v":300,"d":"300p."}},null,"Игрушки",null,null,{"$f":"Домашние_животные[Планируемые расходы]-Домашние_животные[Фактические расходы]","v":{"v":0,"d":"0p."}}]
[null,"Другое",null,null,{"$f":"Питание[Планируемые расходы]-Питание[Фактические расходы]","v":{"v":0,"d":"0p."}},null,"Другое",null,null,{"$f":"Домашние_животные[Планируемые расходы]-Домашние_животные[Фактические расходы]","v":{"v":0,"d":"0p."}}]
[null,"Итого",{"$f":"SUBTOTAL(109,Питание[Планируемые расходы])","v":{"v":700,"d":"700p."}},{"$f":"SUBTOTAL(109,Питание[Фактические расходы])","v":{"v":500,"d":"500p."}},{"$f":"SUBTOTAL(109,Питание[Разница])","v":{"v":200,"d":"200p."}},null,"Итого",{"$f":"SUBTOTAL(109,Домашние_животные[Планируемые расходы])","v":{"v":0,"d":"0p."}},{"$f":"SUBTOTAL(109,Домашние_животные[Фактические расходы])","v":{"v":0,"d":"0p."}},{"$f":"SUBTOTAL(109,Домашние_животные[Разница])","v":{"v":0,"d":"0p."}}]
[]
[null,"Дети","Планируемые расходы","Фактические расходы","Разница",null,"Личная гигиена","Планируемые расходы","Фактические расходы","Разница"]
[null,"Медицина",null,null,{"$f":"Дети[Планируемые расходы]-Дети[Фактические расходы]","v":{"v":0,"d":"0p."}},null,"Медицина",null,null,{"$f":"ЛичнаяГигиена[Планируемые расходы]-ЛичнаяГигиена[Фактические расходы]","v":{"v":0,"d":"0p."}}]
[null,"Одежда",{"v":200,"d":"200p."},{"v":200,"d":"200p."},{"$f":"Дети[Планируемые расходы]-Дети[Фактические расходы]","v":{"v":0,"d":"0p."}},null,"Прическа/ногти",null,null,{"$f":"ЛичнаяГигиена[Планируемые расходы]-ЛичнаяГигиена[Фактические расходы]","v":{"v":0,"d":"0p."}}]
[null,"Плата за обучение",null,null,{"$f":"Дети[Планируемые расходы]-Дети[Фактические расходы]","v":{"v":0,"d":"0p."}},null,"Одежда",{"v":100,"d":"100p."},{"v":400,"d":"400p."},{"$f":"ЛичнаяГигиена[Планируемые расходы]-ЛичнаяГигиена[Фактические расходы]","v":{"v":-300,"d":"-300p."}}]
[null,"Школьные принадлежности",{"v":200,"d":"200p."},{"v":200,"d":"200p."},{"$f":"Дети[Планируемые расходы]-Дети[Фактические расходы]","v":{"v":0,"d":"0p."}},null,"Химчистка",null,null,{"$f":"ЛичнаяГигиена[Планируемые расходы]-ЛичнаяГигиена[Фактические расходы]","v":{"v":0,"d":"0p."}}]
[null,"Организационные взносы и платы",null,null,{"$f":"Дети[Планируемые расходы]-Дети[Фактические расходы]","v":{"v":0,"d":"0p."}},null,"Оздоровительный клуб",null,null,{"$f":"ЛичнаяГигиена[Планируемые расходы]-ЛичнаяГигиена[Фактические расходы]","v":{"v":0,"d":"0p."}}]
[null,"Деньги на завтрак",{"v":100,"d":"100p."},{"v":100,"d":"100p."},{"$f":"Дети[Планируемые расходы]-Дети[Фактические расходы]","v":{"v":0,"d":"0p."}},null,"Организационные взносы и платы",null,null,{"$f":"ЛичнаяГигиена[Планируемые расходы]-ЛичнаяГигиена[Фактические расходы]","v":{"v":0,"d":"0p."}}]
[null,"Уход за детьми",null,null,{"$f":"Дети[Планируемые расходы]-Дети[Фактические расходы]","v":{"v":0,"d":"0p."}},null,"Другое",null,null,{"$f":"ЛичнаяГигиена[Планируемые расходы]-ЛичнаяГигиена[Фактические расходы]","v":{"v":0,"d":"0p."}}]
[null,"Игрушки и игры",null,null,{"$f":"Дети[Планируемые расходы]-Дети[Фактические расходы]","v":{"v":0,"d":"0p."}},null,"Итого",{"$f":"SUBTOTAL(109,ЛичнаяГигиена[Планируемые расходы])","v":{"v":100,"d":"100p."}},{"$f":"SUBTOTAL(109,ЛичнаяГигиена[Фактические расходы])","v":{"v":400,"d":"400p."}},{"$f":"SUBTOTAL(109,ЛичнаяГигиена[Разница])","v":{"v":-300,"d":"(300p.)"}}]
[null,"Другое",null,null,{"$f":"Дети[Планируемые расходы]-Дети[Фактические расходы]","v":{"v":0,"d":"0p."}}]
[null,"Итого",{"$f":"SUBTOTAL(109,Дети[Планируемые расходы])","v":{"v":500,"d":"500p."}},{"$f":"SUBTOTAL(109,Дети[Фактические расходы])","v":{"v":500,"d":"500p."}},{"$f":"SUBTOTAL(109,Дети[Разница])","v":{"v":0,"d":"0p."}},null,"Займы","Планируемые расходы","Фактические расходы","Разница"]
[{"$nulls":6},"Личное",null,null,{"$f":"Займы[Планируемые расходы]-Займы[Фактические расходы]","v":{"v":0,"d":"0p."}}]
[null,"Юридические","Планируемые расходы","Фактические расходы","Разница",null,"Студент",null,null,{"$f":"Займы[Планируемые расходы]-Займы[Фактические расходы]","v":{"v":0,"d":"0p."}}]
[null,"Адвокат",null,null,{"$f":"Юридические[Планируемые расходы]-Юридические[Фактические расходы]","v":{"v":0,"d":"0p."}},null,"Кредитная карта",null,null,{"$f":"Займы[Планируемые расходы]-Займы[Фактические расходы]","v":{"v":0,"d":"0p."}}]
[null,"Алименты",null,null,{"$f":"Юридические[Планируемые расходы]-Юридические[Фактические расходы]","v":{"v":0,"d":"0p."}},null,"Кредитная карта",null,null,{"$f":"Займы[Планируемые расходы]-Займы[Фактические расходы]","v":{"v":0,"d":"0p."}}]
[null,"Платежи",null,null,{"$f":"Юридические[Планируемые расходы]-Юридические[Фактические расходы]","v":{"v":0,"d":"0p."}},null,"Кредитная карта",null,null,{"$f":"Займы[Планируемые расходы]-Займы[Фактические расходы]","v":{"v":0,"d":"0p."}}]
[null,"Другое",null,null,{"$f":"Юридические[Планируемые расходы]-Юридические[Фактические расходы]","v":{"v":0,"d":"0p."}},null,"Другое",null,null,{"$f":"Займы[Планируемые расходы]-Займы[Фактические расходы]","v":{"v":0,"d":"0p."}}]
[null,"Итого",{"$f":"SUBTOTAL(109,Юридические[Планируемые расходы])","v":{"v":0,"d":"0p."}},{"$f":"SUBTOTAL(109,Юридические[Фактические расходы])","v":{"v":0,"d":"0p."}},{"$f":"SUBTOTAL(109,Юридические[Разница])","v":{"v":0,"d":"0p."}},null,"Итого",{"$f":"SUBTOTAL(109,Займы[Планируемые расходы])","v":{"v":0,"d":"0p."}},{"$f":"SUBTOTAL(109,Займы[Фактические расходы])","v":{"v":0,"d":"0p."}},{"$f":"SUBTOTAL(109,Займы[Разница])","v":{"v":0,"d":"0p."}}]
[]
[null,"Сбережения и вложения","Планируемые расходы","Фактические расходы","Разница",null,"Налоги","Планируемые расходы","Фактические расходы","Разница"]
[null,"Пенсионный счет",null,null,{"$f":"Сбережения[Планируемые расходы]-Сбережения[Фактические расходы]","v":{"v":0,"d":"0p."}},null,"Федеральные",null,null,{"$f":"Налоги[Планируемые расходы]-Налоги[Фактические расходы]","v":{"v":0,"d":"0p."}}]
[null,"Счет основного капитала",null,null,{"$f":"Сбережения[Планируемые расходы]-Сбережения[Фактические расходы]","v":{"v":0,"d":"0p."}},null,"Штата",null,null,{"$f":"Налоги[Планируемые расходы]-Налоги[Фактические расходы]","v":{"v":0,"d":"0p."}}]
[null,"Колледж",null,null,{"$f":"Сбережения[Планируемые расходы]-Сбережения[Фактические расходы]","v":{"v":0,"d":"0p."}},null,"Местные",null,null,{"$f":"Налоги[Планируемые расходы]-Налоги[Фактические расходы]","v":{"v":0,"d":"0p."}}]
[null,"Другое",null,null,{"$f":"Сбережения[Планируемые расходы]-Сбережения[Фактические расходы]","v":{"v":0,"d":"0p."}},null,"Другое",null,null,{"$f":"Налоги[Планируемые расходы]-Налоги[Фактические расходы]","v":{"v":0,"d":"0p."}}]
[null,"Итого",{"$f":"SUBTOTAL(109,Сбережения[Планируемые расходы])","v":{"v":0,"d":"0p."}},{"$f":"SUBTOTAL(109,Сбережения[Фактические расходы])","v":{"v":0,"d":"0p."}},{"$f":"SUBTOTAL(109,Сбережения[Разница])","v":{"v":0,"d":"0p."}},null,"Итого",{"$f":"SUBTOTAL(109,Налоги[Планируемые расходы])","v":{"v":0,"d":"0p."}},{"$f":"SUBTOTAL(109,Налоги[Фактические расходы])","v":{"v":0,"d":"0p."}},{"$f":"SUBTOTAL(109,Налоги[Разница])","v":{"v":0,"d":"0p."}}]